Cogmind - Beta 16 @@@ ROGUE MODE // 2025.12.05 @ 09:09:03 Player: McSaucyNugget Result: Destroyed by 2W-2FR(R) with Subdweller Shrapnel Launcher Performance ------------- Evolutions (0) 0 Regions Visited (2) 400 Robots Destroyed (26) 130 Value Destroyed (663) 663 Prototype IDs (13) 260 Alien Tech Used (0) 0 Bonus (0) 0 TOTAL SCORE: 1453 Bonus ------- None Cogmind --------- Core Integrity 0/250 Matter 265/300 Energy 87/100 System Corruption 3% Temperature Cool (0) Movement Rolling (135) Ox3 Location -10/Subcaves Parts ------- > --- POWER (1) -------- (None) > --- PROPULSION (2) --- Wheel Compact Wheel > --- UTILITY (2) ------ Huge Storage Unit Improved Targeting Computer > --- WEAPON (2) ------- Advanced Beam Cannon Battle Cannon > --- INVENTORY (25) --- Wheel Cooling System Cooling System Large Matter Pod (80) Seismic Detector Improved Targeting Computer Advanced Beam Cannon Advanced Beam Cannon Assault Rifle Assault Rifle Subdweller Machine Gun Barrage Gun Rocket Launcher Mini Grenade Launcher Mini Grenade Launcher Mini Grenade Launcher Mini Grenade Launcher Subdweller Shrapnel Launcher Multitool Multitool Peak State ------------ > --- POWER ------------ Ion Engine > --- PROPULSION ------- Wheel Subdweller Monowheel > --- UTILITY ---------- Huge Storage Unit Improved Targeting Computer > --- WEAPON ----------- Advanced Beam Cannon Battle Cannon > --- INVENTORY -------- Wheel Wheel Compact Wheel Cooling System Cooling System Large Matter Pod Seismic Detector Improved Targeting Computer Advanced Beam Cannon Advanced Beam Cannon Assault Rifle Assault Rifle Subdweller Machine Gun Barrage Gun Rocket Launcher Mini Grenade Launcher Mini Grenade Launcher Mini Grenade Launcher Mini Grenade Launcher Subdweller Shrapnel Launcher Multitool Multitool [Rating: 16] Favorites ----------- Power Light Ion Engine Engine Light Ion Engine Propulsion Wheel Wheel Wheel Utility Huge Storage Unit Device Seismic Detector Storage Huge Storage Unit Processor Improved Targeting Computer Protection Light Armor Plating Weapon Advanced Beam Cannon Energy Cannon Advanced Beam Cannon Ballistic Gun Assault Rifle Ballistic Cannon Battle Cannon Launcher Subdweller Shrapnel Launcher Build | -11 -10 -10 ------- Run | Yrd Mat Sub Slots Evolved . | . . . Power . | . . . Propulsion . | . . . Utility . | . . . Weapon . | . . . Parts Attached 28 | 7 9 12 Power 4 | 1 1 2 Engine 4 | 1 1 2 Core . | . . . Reactor . | . . . Propulsion 7 | 2 2 3 Treads . | . . . Leg . | . . . Wheel 7 | 2 2 3 Hover . | . . . Flight . | . . . Utility 5 | 2 1 2 Device 1 | 1 . . Storage 2 | 1 1 . Processor 1 | . . 1 Hackware . | . . . Protection 1 | . . 1 Artifact . | . . . Weapon 12 | 2 5 5 Energy Gun . | . . . Energy Cannon 3 | . 1 2 Ballistic Gun 6 | 2 4 . Ballistic Cannon 2 | . . 2 Launcher 1 | . . 1 Special Weapon . | . . . Impact Weapon . | . . . Slashing Weapon . | . . . Piercing Weapon . | . . . Special Melee Weapon . | . . . Unidentified Prototypes 1 | . 1 . Parts Lost 8 | . 1 7 Power 2 | . . 2 Propulsion 3 | . . 3 Utility 1 | . . 1 Weapon 2 | . 1 1 Highest Loss Streak 3 | . 1 3 To Critical Strikes . | . . . Average Backups 21 | 1 16 23 Power . | . 1 . Propulsion 3 | . 2 3 Utility 5 | . 4 5 Weapon 11 | . 9 12 Tool/Special . | . . . Unused Backups 26 | . 5 21 Power . | . . . Propulsion 1 | . . 1 Utility 6 | . 2 4 Weapon 17 | . 3 14 Tool/Special 2 | . . 2 Average Slot Usage (%) 96 | . 99 95 Engine 13 | . 14 13 Wheel 27 | . 28 27 Device 3 | . 14 . Storage 14 | . 14 14 Processor 4 | . . 6 Protection 2 | . . 3 Energy Cannon 10 | . . 13 Ballistic Gun 8 | . 27 1 Ballistic Cannon 9 | . . 12 Peak Build Rating 16 | 7 12 16 Average Rating 12 | 4 9 13 On Entrance 6 | . 7 11 Avg Prop Armor Cover (%) . | . . . Naked Turns . | . . . Heaviest Build 93 | 11 88 93 Greatest Support 30 | 20 20 30 Greatest Overweight (x) 5 | . 4 5 Average Overweight (x) 3 | . 3 3 Largest Inventory Capacity 25 | 8 25 25 Average Capacity 23 | 7 22 25 Most Carried 25 | 3 25 25 Average Carried 21 | 1 17 23 Final Capacity 25 | 8 25 25 Final Carried 25 | 3 25 20 Class Distribution -------------------- 100% | Mutant Dominant Class ---------------- Mutant | -10/Materials Mutant | -10/Subcaves Resources | -11 -10 -10 ----------- Run | Yrd Mat Sub Matter Collected 1012 | 276 157 579 Remotely . | . . . Salvage Created 851 | 94 459 298 Parts 68 | 5 41 22 Haulers Intercepted 2 | . 2 . Recyclers Shooed 3 | . 3 . Parts Field Recycled . | . . . Retrieved Matter . | . . . Parts Self-Destructed 14 | . . 14 Prevented . | . . . Parts Restored . | . . . Kills | -11 -10 -10 ------- Run | Yrd Mat Sub Combat Hostiles Destroyed 17 | . 7 10 Guns 7 | . 7 . Cannons 9 | . . 9 AOE 1 | . . 1 Classes Destroyed 10 | 2 6 2 Worker 2 | . 2 . Builder 2 | . 2 . Tunneler 1 | 1 . . Hauler 2 | . 2 . Recycler 1 | 1 . . Watcher 1 | . 1 . Swarmer 2 | . 2 . Grunt 5 | . 5 . Sentry 1 | . . 1 Subdweller 9 | . . 9 Best Kill Streak 6 | 2 6 3 Combat Bots Only 3 | . 3 3 Max Kills in Single Turn 1 | 1 1 1 Gunslinging . | . . . Exploded 1 | . . 1 Melee . | . . . Uniques/NPCs Destroyed . | . . . Combat | -11 -10 -10 -------- Run | Yrd Mat Sub Hostile Shots Fired 76 | . 33 43 Missed 15 | . 5 10 Hits 61 | . 28 33 Projectile 61 | . 28 33 AOE 6 | . . 6 Critical Strikes 1 | . . 1 Damage Taken 1293 | . 334 959 Core 256 | . 43 213 Absorbed by Shields . | . . . Core Remaining (%) 100 | 100 . . Volleys Fired 102 | 3 47 52 Largest 2 | 2 2 2 Hottest 101 | 40 40 101 Shots Fired 178 | 6 88 84 Gun 94 | 6 88 . Cannon 82 | . . 82 Launcher 2 | . . 2 Special . | . . . Kinetic 126 | 6 88 32 Thermal 52 | . . 52 Explosive . | . . . Electromagnetic . | . . . Robot Hit Streak 28 | 3 9 28 Robot Miss Streak 5 | 1 5 2 Penetration Max . | . . . Secondary Targets 1 | . 1 . Max Gunslinging Chain 1 | . 1 . Shots Hit Robots 109 | 4 56 49 Core Hits 44 | 4 23 17 Critical Kills . | . . . Critical Parts Destroyed 2 | . 2 . Critical Strikes 5 | . 2 3 Destroy 2 | . 2 . Blast 3 | . . 3 Melee Attacks . | . . . Impact . | . . . Slashing . | . . . Piercing . | . . . Sneak Attacks . | . . . Combat Hostiles . | . . . Follow-up Attacks . | . . . Damage Inflicted 1925 | 43 672 1210 Guns 715 | 43 672 . Cannons 1026 | . . 1026 Explosions 159 | . . 159 Melee . | . . . Ramming 25 | . . 25 Kinetic 1345 | 43 672 630 Thermal 555 | . . 555 Explosive . | . . . Electromagnetic . | . . . Impact . | . . . Slashing . | . . . Piercing . | . . . Highest Corruption 3 | . 3 3 Average Corruption 2 | . 2 3 Corruption Purged . | . . . Corruption Blocked . | . . . Effects 40 | . 4 36 Message Errors 13 | . 1 12 Matter Fused 7 | . 2 5 Heat Flow Errors 4 | . . 4 Energy Discharges 6 | . . 6 Parts Rejected 1 | . . 1 Data Loss (minor) 4 | . 1 3 Data Loss (major) 2 | . . 2 Misfires 2 | . . 2 Weapon Failures 1 | . . 1 Overload Shots . | . . . Overflow Damage . | . . . Projectiles . | . . . Explosions . | . . . Melee . | . . . Knockbacks 9 | . . 9 Impact . | . . . Kinetic 9 | . . 9 Secondary . | . . . Self-Inflicted Damage 63 | . . 63 Shots 2 | . . 2 Rammed 1 | . . 1 Targets Rammed 1 | . . 1 Kicked . | . . . Crushed . | . . . Highest Temperature 205 | . 6 205 Average Temperature 33 | . 2 43 Received Heat Transfer 276 | . 156 120 Siege Activations . | . . . Martial Activations . | . . . Shielding Activations . | . . . Robots Disrupted . | . . . Combat Hostiles . | . . . Robots Corrupted . | . . . Combat Hostiles . | . . . Parts Fried . | . . . Impact Corruptions . | . . . Robots Melted . | . . . Combat Hostiles . | . . . Parts Melted 2 | . . 2 Heat Transferred 999 | . . 999 Parts Sabotaged . | . . . Parts Stolen . | . . . Parts Stripped . | . . . Power Chain Reactions . | . . . Alert | -11 -10 -10 ------- Run | Yrd Mat Sub Maximum Alert Level . | . . . Low Security (%) 100 | 100 100 . Level 1 . | . . . Level 2 . | . . . Level 3 . | . . . Level 4 . | . . . Level 5 . | . . . High Security . | . . . Max Security . | . . . Peak Influence 91 | 5 91 . Initial . | . . . Average 29 | . 32 . Influence Increases 281 | 10 251 20 Destroy 0b10 Robot/C 160 | . 140 20 Destroy 0b10 Robot/NC 45 | 10 35 . Destroy Leader 36 | . 36 . Successful Hack 8 | . 8 . Disable Machine 15 | . 15 . Destroy Structure 2 | . 2 . Lose Combat Pursuer 15 | . 15 . Influence Decreases 281 | 10 198 73 Entered New Map 26 | . . 26 Time Decay 245 | 10 188 47 Lost Part 10 | . 10 . Squads Dispatched 2 | . 2 . Investigation 1 | . 1 . Extermination . | . . . Reinforcement 1 | . 1 . Assault . | . . . Garrison . | . . . Intercept . | . . . Searches Triggered . | . . . Construction Impeded . | . . . Haulers Reinforced . | . . . Active Scanning Responses . | . . . Cargo Convoy Interrupts . | . . . Stealth | -11 -10 -10 --------- Run | Yrd Mat Sub Distress Signals . | . . . Communications Jammed . | . . . Distress Signals . | . . . Times Spotted 29 | . 17 12 Peak Tracking Total 4 | . 4 3 Tactical Retreats 1 | . 1 . Traps | -11 -10 -10 ------- Run | Yrd Mat Sub Traps Triggered 2 | . 2 . Indirectly . | . . . Trap Hack Attempts . | . . . Triggered . | . . . Disarmed . | . . . Reprogrammed . | . . . Reused . | . . . Traps Extracted . | . . . Installed . | . . . Triggered . | . . . Machines | -11 -10 -10 ---------- Run | Yrd Mat Sub Machines Disabled 1 | . 1 . Max in Single Turn 1 | . 1 . Machines Repaired . | . . . Machines Dismantled . | . . . Machines Sabotaged . | . . . Overloaded Fab Kills . | . . . Hacking | -11 -10 -10 --------- Run | Yrd Mat Sub Machines Accessed 7 | . 5 2 Terminals 5 | . 5 . Fabricators . | . . . Repair Stations . | . . . Recycling Units . | . . . Scanalyzers . | . . . Garrison Access . | . . . Total Hacks 25 | . 13 12 Successful 15 | . 3 12 Failed 10 | . 10 . Catastrophic 2 | . 2 . Database Lockouts . | . . . Manual 13 | . 13 . Terminals 13 | . 13 . Fabricators . | . . . Repair Stations . | . . . Recycling Units . | . . . Scanalyzers . | . . . Garrison Access . | . . . Terminal Hacks 12 | . . 12 Record 11 | . . 11 Proto ID Catalog 1 | . . 1 Fabricator Hacks . | . . . Repair Station Hacks . | . . . Recycling Unit Hacks . | . . . Scanalyzer . | . . . Garrison Access Hacks . | . . . Unauthorized Hacks 3 | . 3 . Terminals 3 | . 3 . Skim 3 | . 3 . Fabricators . | . . . Repair Stations . | . . . Recycling Units . | . . . Scanalyzers . | . . . Garrison Access . | . . . Data Cores Recovered . | . . . Used . | . . . Hacking Detections 5 | . 5 . Full Trace Events 1 | . 1 . Feedback Events . | . . . Feedback Blocked . | . . . Robot Schematics Acquired . | . . . Robots Built . | . . . Authchips . | . . . Time . | . . . Total Robot Build Rating . | . . . Part Schematics Acquired . | . . . Parts Built . | . . . Authchips . | . . . Time . | . . . Total Part Build Rating . | . . . Part Studies Acquired . | . . . Parts Repaired . | . . . Time . | . . . Parts Recycled . | . . . Recycled Matter . | . . . Retrieved Matter . | . . . Retrieved Components . | . . . Parts Scanalyzed . | . . . Part Schematics Acquired . | . . . Parts Damaged . | . . . Bothacking | -11 -10 -10 ------------ Run | Yrd Mat Sub Used RIF Installer . | . . . Robots Hacked . | . . . Non-combat . | . . . Combat . | . . . Robot Hacks Applied . | . . . Relay Couplers Released . | . . . Fabnet Peak Effective % . | . . . Robots Rewired . | . . . Allies Hacked . | . . . Hacks Repelled . | . . . Allies | -11 -10 -10 -------- Run | Yrd Mat Sub Total Allies . | . . . Largest Group . | . . . Highest-Rated Group . | . . . Highest-Rated Ally . | . . . Total Orders . | . . . Ally Attacks . | . . . Total Damage . | . . . Kills . | . . . Allies Corrupted . | . . . Allies Melted . | . . . Intel | -11 -10 -10 ------- Run | Yrd Mat Sub Active Infowar (turns) 676 | 5 666 5 Seismic 676 | 5 666 5 Robot Analysis Total . | . . . Derelict Logs Recovered 1 | . . 1 Drone Launches . | . . . Drone Recoveries . | . . . Exploration | -11 -10 -10 ------------- Run | Yrd Mat Sub Turns Passed 2711 | 67 666 1978 Spaces Moved 1724 | 58 376 1290 Core 2 | 2 . . Treads . | . . . Legs . | . . . Wheels 1722 | 56 376 1290 Hover . | . . . Flight . | . . . Fastest Speed 50 | 50 80 131 Average Speed 133 | 78 125 138 Slowest Speed 175 | 80 140 175 Overloaded Moves . | . . . Propulsion Burnouts . | . . . Robots Hopped . | . . . Potential Cave-ins . | . . . Cave-ins Triggered . | . . . Exploration Rate (%) 43 | 5 63 63 Regions Visited 2 Branch Regions 1 Pre-discovered Areas 1 | . . 1 Known Exits Taken . | . . . Unknown Exits Taken 2 | 1 1 . Scrap Searched 2 | . . 2 Spaces Dug . | . . . Terrain Destroyed 19 | . . 19 Melee . | . . . Projectile . | . . . AOE 19 | . . 19 Terrain Rammed . | . . . Walls Destroyed . | . . . Machines Disabled . | . . . Actions | -11 -10 -10 --------- Run | Yrd Mat Sub Total 1957 | 70 491 1396 Wait 38 | . 15 23 Move 1722 | 57 375 1290 Hop . | . . . Pick Up 41 | 3 30 8 Fast Attach 9 | 7 . 2 Attach 9 | . 3 6 Detach 1 | . 1 . Swap 13 | . 7 6 Drop 21 | . 13 8 Fire 102 | 3 47 52 Melee . | . . . Ram 1 | . . 1 Kick . | . . . Crush . | . . . Escape Stasis . | . . . Rewire . | . . . Trap . | . . . Miscellaneous . | . . . Route ------- -11/Scrapyard -10/Materials (discovered 3 exits: [*Mat] / [*Min] / *Sub) -10/Subcaves (discovered 1 exit: [*Mat]) History --------- Turn | Location | Event 7 | -11/Scrapyard | Discovered new exit (range 16) 68 | -11/Scrapyard | Entered Materials 113 | -10/Materials | Discovered new exit (range 16) 312 | -10/Materials | Build established: Mutant 568 | -10/Materials | Discovered new exit (range 15) 688 | -10/Materials | Discovered new exit (range 7) 734 | -10/Materials | Entered Subcaves 735 | -10/Subcaves | Approached by a straggling Scientist 747 | -10/Subcaves | Discovered new exit (range 15) 827 | -10/Subcaves | Visited 4L-MR0's lab 890 | -10/Subcaves | Shifting Twisted Machinery released Battle Cannon 978 | -10/Subcaves | A swath of the cavern ceiling suddenly collapsed 1177 | -10/Subcaves | Shifting Twisted Machinery released Shrapnel Trap 1287 | -10/Subcaves | Found Powered Cannon 1697 | -10/Subcaves | Shifting Twisted Machinery released Multitool 1724 | -10/Subcaves | Shifting Twisted Machinery released Battle Cannon 1975 | -10/Subcaves | Visited Clippyterm 1979 | -10/Subcaves | Learned location of Section 7 (-3) 1996 | -10/Subcaves | A swath of the cavern ceiling suddenly collapsed 2132 | -10/Subcaves | Disturbed a concealed Subdweller 2137 | -10/Subcaves | Core integrity fell below 50% 2167 | -10/Subcaves | Lost 3 parts (2n1w) 2492 | -10/Subcaves | Ambushed by Subdwellers from Twisted Machinery 2576 | -10/Subcaves | Core integrity fell below 20% 2702 | -10/Subcaves | Ambushed by Subdweller buried in earth 2702 | -10/Subcaves | Ambushed by Subdweller buried in earth 2712 | -10/Subcaves | Destroyed by 2W-2FR(R) with Subdweller Shrapnel Launcher Last Messages --------------- 02607_ System corrupted: Energy discharge (-58). 02626_ Subatomizers dissect the Sub. Beam Cannon. 02631_ Acquired 26 matter. 02633_ Acquired 11 matter. 02652_ System corrupted: Heat flow error (+110). 02667_ System corrupted: Matter fused (-8). 02677_ Subatomizers dissect the Sub. Beam Cannon. 02683_ Acquired 1 matter. 02692_ Subatomizers dissect the Sub. Beam Cannon. 02699_ System corrupted: Matter fused (-7). 02699_ 2W-2FR(R) knocked back. [Achievement: Do Not Disturb] 02702_ 2W-2FR(R) knocked back. 02703_ E0-IKF(R): "SLEEPOVER!" 02703_ XS-7NY(R): "ARGHSUB!" 02704_ Sub. Power Source destroyed. 02705_ XS-7NY(R) destroyed. 02705_ 2W-2FR(R) knocked back. 02708_ E0-IKF(R) knocked back. 02711_ E0-IKF(R) destroyed. Map ----- +----------------------------------------------------+ | " ## ######?### ##???????????????????????????? | | # #### #???????????????????????????? | | ### ## #?##????????????????????????? | | #### #?# # ### ##???????????????????????? | | ##?# ### ## #### ##??????????????????????? | | ### ## # ## ###????????????????????? | | # # """ ?????????????????????? | | "" ? #??????????????????? | | ##"" #??????????????????? | | ## # ######?? #??????????????????? | | ######### ## ##??? #??????????????????? | | ????????# ### ##?#"" #???????????????????? | | ????????# ##?## ## "#????????????????????? | | ????????####???# #?????????????????????? | | ???????????????# ##?????????????????????? | | ???????????????#= ##??? ?####?????????????? | | ???????????##### ] & ###????"" # ???????????? | | ?????????### ## [ #?????""" ????????????? | | ????????## " ##??### " ?????????????? | | ????????#"" " #?##;# #??????????????? | | ????????#" ### " # ###; ] #???????????????? | | ????????#" #?###### #; %%[ ;#????????????????? | | ????????# #??### ### !! ;# #??????????????? | | ????????# """""#?# ; ### #??????????? | | ????????##""""""#### % ^ #??????????? | | ?????????## " @%[ ; ^ ????????? | | ??????????# "" ! R ????????? | | ??????????##"## ;; # ## #?????????? | | ????????????## # ## # ;; ##?? #??????????????? | | ?????????????#?######## ###????????????????????? | | ????????????????????### #### #??????????????? | | ????????????????????# #???????????????? | | ????????????????????##< ## #???????????????? | | ???????????????????? " ###???????????????????? | | ???????????????????#$#<" ##?????????????????????? | | ???????????????????###""" #??????????????????????? | | ?????????????????????### #??????????????????????? | | ???????????????????????## #??????????????????????? | | ?????????????????????????##??????????????????????? | | ?????????????????????????????????????????????????? | | ?????????????????????????????????????????????????? | | ?????????????????????????????????????????????????? | | ?????????????????????????????????????????????????? | | ?????????????????????????????????????????????????? | | ?????????????????????????????????????????????????? | | ##???????????????????????????????????????????????? | | #???????????????????????????????????????????????? | | #???????????????????????????????????????????????? | | #???????????????????????????????????????????????? | | ##???????????????????????????????????????????????? | +----------------------------------------------------+ Best States ------------- Heat Dissipation 25 Energy Generation 15 Energy Capacity 250 Matter Stores 300 Matter Capacity 300 Sight Range 16 Terrain Scan Density 10 Armor Coverage 150 Evasion (%) 44 Targeting Accuracy 6 Item Schematics ----------------- None Robot Schematics ------------------ None Fabricated ------------ Nothing Repaired ---------- Nothing Studied --------- None Alien Tech Used ----------------- None Achievements -------------- Do Not Disturb Mistaken Identity Challenges ------------ None Game ------ Seed RelayAntisysCompressor Manual? 0 Play Time 00:24:16 Cumulative 244.7 hours Start 2025.11.22 @ 22:18:23 End 2025.12.05 @ 09:09:03 Sessions 4 Manual Loads 0 Difficulty Rogue Special Mode None Game No. 101 Rogue 101 Adventurer 0 Explorer 0 Win Type - Total 23 Types 7/3/6/2/1/0/0/1/1/2 Lore% 77 Gallery% 75 Achievement% 52 Wizard Run 0 Options --------- Layout 0 ASCII 0 Keyboard 1 Movement Vi Keybinds 0 Fullscreen 2 Font 18/SmallcapsGlow Map View 76x50 Zoom Use 0% Tactical HUD 1 Map Filters NONE Filters NONE Steam 1 RUN: f6524f5b-d372-4e7f-8974-21c8a22168ef